bitfinex/quotes_SOLUSD_20260203
["timestamp","ask_amount","ask_price","bid_price","bid_amount"]
[1770134080348,20.785551,102.44,102.39,20.78745481]
[1770134081153,11.0233588,102.44,102.39,20.78745481]
[1770134081458,11.0233588,102.44,102.39,45.20390172]
[1770134082449,4.27527085,102.46,102.41,4.13436593]
[1770134082651,4.13684868,102.51,102.45,4.13436593]
[1770134082872,11.0233588,102.5,102.45,4.13436593]
[1770134083058,6.88651012,102.46,102.43,4.13436593]
[1770134083658,11.0233588,102.45,102.42,27.14]
[1770134083862,6.88651012,102.43,102.39,45.20390172]
[1770134084564,6.88651012,102.44,102.4,4.13436593]
[1770134084753,11.0233588,102.46,102.41,11.02087605]
[1770134084951,13.89675537,102.46,102.41,11.02087605]
[1770134085152,6.88651012,102.47,102.43,11.02087605]
[1770134085352,6.88651012,102.48,102.44,11.02087605]
[1770134085554,6.88651012,102.47,102.43,6.88651012]
[1770134085868,6.88651012,102.45,102.41,27.14]
[1770134086047,6.88651012,102.46,102.42,20.78459407]
[1770134086365,20.78258897,102.47,102.42,45.19388912]
[1770134086556,6.88651012,102.46,102.42,13.89808395]
[1770134086864,6.88651012,102.46,102.42,20.78459407]
[1770134087073,6.88651012,102.45,102.42,13.89808395]
[1770134087568,6.88651012,102.45,102.4,13.8992043]
[1770134087569,6.88651012,102.44,102.4,13.8992043]
[1770134088049,16.64948691,102.43,102.38,11.02087605]
[1770134088362,6.88651012,102.42,102.38,11.02087605]
[1770134088966,6.88651012,102.4,102.36,13.90346404]
[1770134089270,6.88651012,102.4,102.35,31.31060735]
[1770134089271,4.13684868,102.36,102.31,28.56816442]
[1770134089567,6.88651012,102.35,102.32,9.77248566]
[1770134089771,6.88651012,102.33,102.3,9.77517106]
[1770134090169,6.88651012,102.32,102.29,4.13436593]
[1770134090468,6.88651012,102.32,102.28,4.09963202]
[1770134091076,6.88651012,102.32,102.29,9.77605808]
[1770134091286,4.13684868,102.34,102.29,9.77605808]
[1770134091452,6.88651012,102.34,102.3,10.98614214]
[1770134091970,6.88651012,102.34,102.3,4.09963202]
[1770134092167,6.88651012,102.34,102.27,5.36086188]
[1770134092168,6.88651012,102.31,102.28,9.77634225]
[1770134092369,6.88651012,102.3,102.27,9.77772254]
[1770134092562,6.88651012,102.3,102.28,9.77708145]
[1770134092766,6.88651012,102.3,102.27,9.77770034]
[1770134092960,6.88651012,102.29,102.26,9.77859473]
[1770134093158,6.88651012,102.29,102.24,38.12614214]
[1770134093367,6.88651012,102.25,102.22,9.78243198]
[1770134093571,6.88651012,102.24,102.22,9.78243198]
[1770134093779,6.88651012,102.25,102.21,3.83387524]
[1770134093987,6.88651012,102.24,102.21,13.61721835]
[1770134094470,6.88651012,102.25,102.21,13.61721835]
[1770134095060,6.88651012,102.25,102.21,38.07666458]
[1770134095473,6.88651012,102.24,102.21,38.07666458]
[1770134095772,6.88651012,102.24,102.21,9.78359219]
[1770134096073,6.88651012,102.25,102.21,13.61746743]
[1770134096265,6.88651012,102.26,102.21,44.96342378]
[1770134097966,6.88651012,102.26,102.22,3.83387524]
[1770134098162,10.74256018,102.27,102.22,10.72038536]
[1770134098367,6.88651012,102.27,102.23,44.95691083]
[1770134098977,10.74256018,102.3,102.25,10.72038536]
[1770134099356,6.88651012,102.28,102.25,3.83387524]
[1770134099556,6.88651012,102.29,102.25,3.83387524]
[1770134099758,10.74256018,102.3,102.25,10.72038536]
[1770134099975,6.88651012,102.29,102.25,10.72038536]
[1770134100275,6.88651012,102.29,102.25,9.7799511]
[1770134100476,13.62638977,102.36,102.3,10.72038536]
[1770134100683,10.74256018,102.36,102.31,6.88651012]
[1770134100876,10.74256018,102.36,102.3,3.83387524]
[1770134101084,10.74256018,102.37,102.33,6.88651012]
[1770134101269,3.85605006,102.36,102.32,6.88651012]
[1770134101575,3.85605006,102.37,102.33,6.88651012]
[1770134101954,3.85605006,102.37,102.34,6.88651012]
[1770134102382,3.85605006,102.37,102.34,9.77107368]
[1770134102581,10.74256018,102.36,102.33,9.7720124]
[1770134103082,9.76795312,102.38,102.33,16.65852252]
[1770134103083,6.88651012,102.37,102.33,16.65852252]
[1770134103874,10.74256018,102.37,102.33,16.65852252]
[1770134104184,10.74256018,102.36,102.33,9.77230505]
[1770134104361,6.88651012,102.37,102.34,9.77130108]
[1770134104563,6.88651012,102.36,102.33,9.77191115]
[1770134104787,6.88651012,102.36,102.3,5.36086188]
[1770134104788,6.88651012,102.34,102.3,10.72038536]
[1770134105282,6.88651012,102.36,102.31,10.72038536]
[1770134105483,10.74256018,102.36,102.31,10.72038536]
[1770134105691,6.88651012,102.35,102.33,9.7722781]
[1770134106071,10.74256018,102.38,102.33,20.49266346]
[1770134106274,10.74256018,102.38,102.34,6.88651012]
[1770134106470,10.74256018,102.38,102.35,9.7703957]
[1770134106673,3.85605006,102.4,102.35,16.65690582]
[1770134106871,10.74256018,102.4,102.36,6.88651012]
[1770134107775,6.88651012,102.39,102.35,41.08289507]
[1770134108296,6.88651012,102.39,102.35,16.65690582]
[1770134108503,6.88651012,102.37,102.34,9.7708844]
[1770134108908,10.74256018,102.35,102.3,3.83387524]
[1770134109194,6.88651012,102.34,102.31,9.77365905]
[1770134109399,6.88651012,102.33,102.3,9.77468731]
[1770134109569,6.88651012,102.34,102.31,9.77410606]
[1770134109770,10.74256018,102.36,102.31,41.09615522]
[1770134109971,10.74256018,102.35,102.31,41.09615522]
[1770134110384,6.88651012,102.35,102.31,41.09615522]
[1770134110891,16.65731419,102.35,102.31,9.77410606]
[1770134111073,6.88651012,102.34,102.31,9.77410606]
[1770134111265,13.62685413,102.35,102.31,9.77410606]
[1770134111266,10.74256018,102.35,102.31,9.77410606]
[1770134111672,20.51296228,102.35,102.31,9.77410606]
[1770134111990,6.88651012,102.34,102.31,9.77408211]
[1770134112186,6.88651012,102.34,102.3,13.60867352]
[1770134112389,6.88651012,102.33,102.29,16.662202]
[1770134112590,6.88651012,102.33,102.29,9.77569188]
[1770134112914,10.74256018,102.3,102.27,27.14]
[1770134113071,10.74256018,102.3,102.26,31.33321869]
[1770134113072,6.88651012,102.28,102.26,9.77846197]
[1770134113269,6.88651012,102.29,102.26,9.77846197]
[1770134113698,6.88651012,102.3,102.26,13.61233721]
[1770134113869,6.88651012,102.3,102.26,9.77846197]
[1770134114075,6.88651012,102.29,102.26,9.77846197]
[1770134114371,10.74256018,102.3,102.26,34.22594876]
[1770134114692,6.88651012,102.32,102.28,10.72038536]
[1770134114868,6.88651012,102.34,102.29,10.72038536]
[1770134115074,20.51398029,102.34,102.29,10.72038536]
[1770134115297,20.51398029,102.34,102.27,3.83387524]
[1770134115298,6.88651012,102.31,102.27,3.83387524]
[1770134115690,6.88651012,102.31,102.27,10.72038536]
[1770134116082,6.88651012,102.31,102.27,3.83387524]
[1770134116374,10.74256018,102.33,102.28,6.88651012]
[1770134116569,20.51487893,102.33,102.29,9.77612669]
[1770134116796,6.88651012,102.31,102.28,9.77659476]
[1770134117180,10.74256018,102.32,102.28,9.77659476]
[1770134117795,10.74256018,102.32,102.28,16.66310488]
[1770134117975,10.74256018,102.32,102.28,9.77659476]
[1770134118175,6.88651012,102.31,102.28,9.77659476]
[1770134118380,10.74256018,102.32,102.28,9.77659476]
[1770134118587,10.74256018,102.32,102.28,41.10581117]
[1770134118788,3.85605006,102.32,102.28,41.10581117]
[1770134118993,10.74256018,102.32,102.28,41.10581117]
[1770134119175,10.74256018,102.3,102.27,9.77772683]
[1770134119376,4.27527085,102.35,102.27,9.77772683]
[1770134119377,6.88651012,102.31,102.27,9.77772683]
[1770134119576,6.88651012,102.3,102.27,9.77772683]
[1770134119997,10.74256018,102.31,102.27,9.77772683]
[1770134120195,6.88651012,102.32,102.27,44.9432085]
[1770134120420,10.74256018,102.33,102.29,6.88651012]
[1770134120800,6.88651012,102.34,102.29,10.9026976]
[1770134121093,10.89133897,102.33,102.29,6.88651012]
[1770134121274,10.89133897,102.32,102.28,10.9026976]
[1770134121477,10.89133897,102.32,102.28,4.01618748]
[1770134121676,10.89133897,102.32,102.27,41.10933326]
[1770134121900,10.89133897,102.32,102.27,45.12552074]
[1770134122504,10.89133897,102.31,102.27,9.77772683]
[1770134122692,6.88651012,102.29,102.26,9.77844447]
[1770134123092,6.88651012,102.29,102.25,10.9026976]
[1770134123402,6.88651012,102.29,102.26,9.77894739]
[1770134123595,10.89133897,102.29,102.25,9.77943732]
[1770134123797,6.88651012,102.28,102.25,9.77943732]
[1770134124000,10.89133897,102.29,102.26,9.77891707]
[1770134124499,10.89133897,102.29,102.24,35.35441944]
[1770134124500,6.88651012,102.28,102.24,13.79661977]
[1770134124711,10.89133897,102.26,102.24,9.78075982]
[1770134124881,10.89133897,102.29,102.24,20.68345742]
[1770134125087,10.89133897,102.29,102.25,6.88651012]
[1770134125701,20.66749723,102.29,102.24,45.13572659]
[1770134126000,6.88651012,102.27,102.23,9.78136797]
[1770134126197,10.89133897,102.3,102.26,6.88651012]
[1770134126383,13.77853011,102.32,102.27,6.88651012]
[1770134126589,10.89133897,102.31,102.27,16.6640287]
[1770134126891,10.89133897,102.31,102.27,9.77751858]
[1770134127105,10.89133897,102.31,102.27,16.6640287]
[1770134127305,4.00482885,102.31,102.27,16.6640287]
[1770134127606,4.00482885,102.31,102.28,6.88651012]
[1770134127994,20.6639472,102.33,102.29,6.88651012]
[1770134128292,6.88651012,102.35,102.31,6.88651012]
[1770134128495,6.88651012,102.35,102.31,16.66026965]
[1770134128496,13.77532766,102.35,102.31,16.66026965]
[1770134129107,4.00482885,102.35,102.31,16.66026965]
[1770134129606,20.66021556,102.37,102.33,6.88651012]
[1770134129805,4.00482885,102.38,102.34,6.88651012]
[1770134130014,4.00482885,102.38,102.35,6.88651012]
[1770134130311,13.77240104,102.38,102.34,6.88651012]
[1770134130500,10.89133897,102.37,102.33,9.77230528]
[1770134130806,20.65989072,102.37,102.32,43.81934736]
[1770134131003,20.65989072,102.37,102.32,47.83553484]
[1770134131211,6.88651012,102.36,102.32,40.94902472]
[1770134131393,20.65989072,102.37,102.32,47.83553484]
[1770134131800,4.00482885,102.36,102.32,43.81934736]
[1770134132011,9.76855175,102.37,102.31,16.66023355]
[1770134132012,10.89133897,102.35,102.31,16.66023355]
[1770134132318,10.89133897,102.35,102.3,20.67739702]
[1770134132319,6.88651012,102.34,102.3,20.67739702]
[1770134132490,20.66273998,102.34,102.29,38.0626976]
[1770134132694,6.88651012,102.33,102.29,20.67835581]
[1770134132902,6.88651012,102.33,102.29,9.77565821]
[1770134132903,10.89133897,102.33,102.29,9.77565821]
[1770134133103,9.77140101,102.34,102.25,6.88651012]
[1770134133104,4.00482885,102.29,102.25,6.88651012]
[1770134133310,4.00482885,102.29,102.23,4.01618748]
[1770134133311,10.89133897,102.27,102.23,9.78141228]
[1770134133502,6.88651012,102.25,102.21,10.9026976]
[1770134133705,6.88651012,102.25,102.21,13.79935349]
[1770134134097,10.89133897,102.26,102.21,4.01618748]
[1770134134303,10.89133897,102.26,102.22,9.78244551]
[1770134134611,6.88651012,102.24,102.19,62.52574062]
[1770134134793,6.88651012,102.24,102.2,9.78435469]
[1770134135111,6.88651012,102.23,102.19,9.78536219]
[1770134135313,6.88651012,102.23,102.2,9.78450482]
[1770134135687,20.67139706,102.25,102.2,16.67101494]
[1770134136397,16.66578687,102.26,102.21,16.26355948]
[1770134136702,10.89133897,102.27,102.22,20.68483302]
[1770134136903,10.90392156,102.27,102.22,20.69741561]
[1770134137209,16.67663356,102.28,102.23,10.91528019]
[1770134137412,20.68146241,102.28,102.23,10.91528019]
[1770134137594,6.89909271,102.27,102.23,10.91528019]
[1770134138312,10.90392156,102.27,102.22,41.13828154]
[1770134138802,10.90392156,102.27,102.23,6.89909271]
[1770134139192,4.00482885,102.27,102.23,6.89909271]
[1770134139593,10.90392156,102.27,102.23,12.25995459]
[1770134139793,20.68203172,102.27,102.23,6.89909271]
[1770134139989,4.00482885,102.26,102.22,9.78213542]
[1770134140211,6.89909271,102.25,102.22,9.78213542]
[1770134140610,4.00482885,102.26,102.22,9.78213542]
[1770134140611,10.90392156,102.26,102.22,9.78213542]
[1770134140809,6.89909271,102.24,102.21,9.78347824]
[1770134141123,6.89909271,102.24,102.2,15.14518129]
[1770134141124,6.89909271,102.23,102.2,15.14518129]
[1770134141419,10.90392156,102.24,102.21,9.78375225]
[1770134141614,4.00482885,102.24,102.21,9.78375225]
[1770134141795,4.00482885,102.23,102.19,27.16]
[1770134142000,10.90392156,102.23,102.19,36.94520378]
[1770134142212,10.90392156,102.23,102.19,43.84429649]
[1770134142407,4.00482885,102.23,102.2,9.78428381]
[1770134142711,20.68625915,102.23,102.19,36.94523407]
[1770134142928,10.90392156,102.22,102.19,27.16]
[1770134143112,4.00482885,102.22,102.19,36.94567916]
[1770134143318,6.89909271,102.25,102.21,6.89909271]
[1770134143633,10.90392156,102.25,102.21,6.89909271]
[1770134144299,20.68440842,102.25,102.21,16.68262451]
[1770134144499,20.68440842,102.25,102.21,6.89909271]
[1770134144695,10.90392156,102.24,102.2,15.14530499]
[1770134144895,9.78048686,102.25,102.21,6.89909271]
[1770134145101,20.68440842,102.25,102.21,6.89909271]
[1770134145400,10.90392156,102.24,102.2,26.06037744]
[1770134145609,10.90392156,102.24,102.21,9.78348791]
[1770134145816,16.67957957,102.25,102.21,16.68258062]
[1770134146113,20.68440842,102.25,102.21,9.78348791]
[1770134146323,10.90392156,102.24,102.2,9.78424457]
[1770134146521,6.89909271,102.25,102.2,45.16136429]
[1770134146696,10.90392156,102.26,102.21,10.91528019]
[1770134147114,4.00482885,102.26,102.22,12.25995459]
[1770134147714,4.00482885,102.26,102.23,6.89909271]
[1770134147923,4.00482885,102.26,102.22,12.25995459]
[1770134148221,4.00482885,102.26,102.23,6.89909271]
[1770134148401,4.00482885,102.26,102.23,16.68034078]
[1770134148826,6.89909271,102.28,102.23,45.15118931]
[1770134149018,10.90392156,102.29,102.25,6.89909271]
[1770134149604,13.78112865,102.29,102.25,6.89909271]
[1770134149805,20.67914258,102.3,102.26,6.89909271]
[1770134150629,20.67914258,102.3,102.26,16.67763187]
[1770134150827,4.00482885,102.3,102.27,6.89909271]
[1770134151527,20.67927326,102.3,102.26,16.67763187]
[1770134153521,3.80216761,102.32,102.28,6.89909271]
[1770134154324,3.90216761,102.35,102.31,6.89909271]
[1770134154519,3.90216761,102.35,102.32,6.89909271]
[1770134154737,0.1,102.35,102.33,6.89909271]
[1770134155448,0.1,102.35,102.33,16.67132322]
[1770134155635,0.1,102.35,102.33,6.89909271]
[1770134155814,0.1,102.35,102.32,16.67185085]
[1770134156018,0.1,102.35,102.33,6.89909271]
[1770134156329,16.66694891,102.38,102.34,6.89909271]
[1770134156632,16.66694891,102.38,102.33,13.76432557]
[1770134156633,16.66694891,102.38,102.33,20.66341828]
[1770134156830,16.66694891,102.38,102.34,6.89909271]
[1770134157146,9.7678562,102.38,102.34,10.89138064]
[1770134157439,16.66694891,102.38,102.33,9.77203764]
[1770134157644,16.66694891,102.38,102.34,6.89909271]
[1770134157645,9.7678562,102.38,102.34,6.89909271]
[1770134158234,9.7678562,102.38,102.33,13.76432557]
[1770134158235,20.46911652,102.38,102.33,20.66341828]
[1770134158623,10.70126032,102.37,102.33,9.77203764]
[1770134158838,10.70126032,102.35,102.31,16.67281493]
[1770134159134,10.70126032,102.35,102.31,9.77372222]
[1770134159343,10.70126032,102.35,102.32,9.7730619]
[1770134159344,3.80216761,102.35,102.32,9.7730619]
[1770134159636,20.47016773,102.37,102.33,6.89909271]
[1770134159830,44.89138488,102.37,102.32,20.66444254]
[1770134160038,10.70126032,102.36,102.32,20.66444254]
[1770134160239,3.80216761,102.36,102.32,20.66444254]
[1770134160630,3.80216761,102.35,102.31,16.67284599]
[1770134160841,10.70126032,102.35,102.31,16.67284599]
[1770134161437,20.47315082,102.34,102.3,13.76727501]
[1770134161846,20.47315082,102.34,102.29,36.6982944]
[1770134161847,20.47315082,102.34,102.29,10.89138064]
[1770134162050,20.47315082,102.34,102.3,9.77513731]
[1770134162244,20.47315082,102.34,102.29,20.66700268]
[1770134162544,3.80216761,102.34,102.3,20.66624869]
[1770134162751,3.80216761,102.34,102.3,13.76715598]
[1770134162944,13.5737217,102.34,102.3,20.66624869]
[1770134163148,10.70126032,102.33,102.28,47.82802051]
[1770134163449,6.89909271,102.31,102.28,9.77663987]
[1770134163955,3.80216761,102.32,102.28,16.67573258]
[1770134164131,3.80216761,102.32,102.28,20.66802051]
[1770134164857,10.70126032,102.32,102.28,20.66802051]
[1770134165363,20.47465555,102.32,102.28,13.7689278]
[1770134165555,6.89909271,102.31,102.27,20.66918696]
[1770134165849,20.47465555,102.32,102.27,45.11428327]
[1770134166544,16.67158034,102.33,102.29,6.89909271]
[1770134166750,20.47374795,102.33,102.29,6.89909271]
[1770134167550,11.17436356,102.36,102.32,3.99228793]
[1770134167755,10.70126032,102.38,102.33,10.89138064]
[1770134167967,3.80216761,102.38,102.34,6.89909271]
[1770134168454,20.46940155,102.38,102.34,6.89909271]
[1770134168631,20.46940155,102.38,102.34,9.7711627]
[1770134168837,20.46940155,102.38,102.34,16.67025541]
[1770134169141,13.57030884,102.38,102.34,16.67025541]
[1770134169749,20.46940155,102.38,102.34,16.67025541]
[1770134170066,13.57030884,102.38,102.34,16.67025541]
[1770134170264,10.70126032,102.37,102.33,6.89909271]
[1770134170439,34.18697303,102.38,102.32,9.77284276]
[1770134170440,3.80216761,102.35,102.32,9.77284276]
[1770134170641,3.80216761,102.39,102.35,3.99228793]
[1770134170861,9.76632781,102.4,102.36,6.89909271]
[1770134171059,3.80216761,102.4,102.36,6.89909271]
[1770134171738,10.70126032,102.4,102.36,6.89909271]
[1770134172162,3.80216761,102.38,102.34,6.89909271]
[1770134172459,6.89909271,102.38,102.33,16.25224252]
[1770134172656,10.70126032,102.37,102.33,9.77144395]
[1770134172956,10.70126032,102.37,102.32,35.32453153]
[1770134172957,6.89909271,102.35,102.31,10.89138064]
[1770134173157,10.70126032,102.36,102.32,9.77281443]
[1770134173755,3.80216761,102.36,102.32,9.77281443]
[1770134173947,10.70126032,102.36,102.32,9.77281443]
[1770134174267,10.70126032,102.36,102.33,9.77230057]
[1770134174445,6.89909271,102.37,102.33,16.67139328]
[1770134174763,10.70126032,102.39,102.35,3.99228793]
[1770134174963,3.80216761,102.41,102.38,6.89909271]
[1770134175156,0.1,102.42,102.39,6.89909271]
[1770134175457,20.56499358,102.42,102.37,6.89909271]
[1770134175663,20.56499358,102.42,102.37,10.89138064]
[1770134176260,20.56499358,102.42,102.38,6.89909271]
[1770134176467,10.80126032,102.42,102.38,6.89909271]
[1770134176756,0.1,102.44,102.4,10.89138064]
[1770134176963,3.90216761,102.44,102.4,10.89138064]
[1770134177270,20.56316989,102.44,102.4,3.99228793]
[1770134177770,10.70126032,102.42,102.38,9.76709624]
[1770134178663,10.70126032,102.42,102.37,10.89138064]
[1770134178664,6.89909271,102.4,102.36,22.02886737]
[1770134178864,6.89909271,102.39,102.36,9.76891278]
[1770134179171,10.70126032,102.4,102.35,47.80135357]
[1770134179472,3.80216761,102.4,102.36,3.99228793]
[1770134179674,4.27527085,102.43,102.38,6.89909271]
[1770134179675,10.70126032,102.42,102.38,6.89909271]
[1770134180042,6.89909271,102.43,102.39,6.89909271]
[1770134180276,10.70126032,102.43,102.39,6.89909271]
[1770134180869,3.87836719,102.42,102.39,9.76606508]
[1770134181065,3.87836719,102.42,102.38,6.89909271]
[1770134181270,0.1,102.44,102.41,6.89909271]
[1770134181575,3.97836719,102.44,102.4,4.00463243]
[1770134181764,3.97836719,102.44,102.41,6.89909271]
[1770134181967,0.1,102.44,102.42,6.89909271]
[1770134182772,0.1,102.44,102.42,16.6624366]
[1770134183567,0.1,102.44,102.42,13.76827218]
[1770134183971,0.1,102.44,102.42,9.76363975]
[1770134184675,0.1,102.44,102.41,16.66324501]
[1770134185497,0.1,102.44,102.42,6.89909271]
[1770134185778,0.1,102.44,102.41,45.07955598]
[1770134186383,10.7774599,102.43,102.39,27.14]
[1770134186587,10.7774599,102.41,102.37,9.76802712]
[1770134186765,4.37527085,102.44,102.34,13.77508822]
[1770134186766,10.7774599,102.38,102.34,13.77508822]
[1770134187081,6.89909271,102.38,102.34,45.10255693]
[1770134187283,10.7774599,102.4,102.36,4.00463243]
[1770134187465,3.87836719,102.4,102.36,10.90372514]
[1770134187669,6.89909271,102.41,102.37,6.89909271]
[1770134188017,6.89909271,102.41,102.36,4.00463243]
[1770134188018,10.7774599,102.4,102.36,10.90372514]
[1770134188164,10.7774599,102.38,102.34,20.67418093]
[1770134188485,6.89909271,102.36,102.33,27.14]
[1770134189085,20.54634229,102.37,102.33,36.91217392]
[1770134189266,6.89909271,102.36,102.33,9.77217392]
[1770134189674,16.6679751,102.37,102.33,20.67589906]
[1770134190178,16.6679751,102.37,102.33,13.77680635]
[1770134190386,6.89909271,102.36,102.33,4.00463243]
[1770134190759,6.89909271,102.36,102.32,16.6720543]
[1770134190760,6.89909271,102.35,102.31,38.04372514]
[1770134190975,6.89909271,102.35,102.31,20.67747635]
[1770134191375,6.89909271,102.36,102.32,4.00463243]
[1770134191581,20.54634725,102.37,102.32,10.90372514]
[1770134191787,3.87836719,102.37,102.33,6.89909271]
[1770134191995,17.92069749,102.39,102.34,10.90372514]
[1770134192188,6.89909271,102.38,102.34,10.90372514]
[1770134192385,20.54451935,102.39,102.34,10.90372514]
[1770134192677,10.7774599,102.38,102.33,38.04372514]
[1770134193074,20.5452693,102.38,102.34,9.7713504]
[1770134193296,16.66602954,102.39,102.34,20.67507554]
[1770134193490,16.66602954,102.39,102.35,10.90372514]
[1770134193880,24.41337776,102.41,102.37,10.90372514]
[1770134193881,6.89909271,102.41,102.37,10.90372514]
[1770134194090,24.45194269,102.42,102.37,10.90372514]
[1770134194273,20.17667184,102.42,102.37,10.90372514]
[1770134194896,6.89909271,102.41,102.37,10.90372514]
[1770134195091,16.66447726,102.41,102.37,10.90372514]
[1770134195291,6.89909271,102.38,102.33,13.77619929]
[1770134195491,6.89909271,102.36,102.32,13.77755857]
[1770134195694,6.89909271,102.36,102.32,20.67665128]
[1770134195902,6.89909271,102.36,102.32,4.00463243]
[1770134196090,4.03021472,102.47,102.31,6.89909271]
[1770134196295,4.13021472,102.48,102.36,13.79818542]
[1770134196484,4.03021472,102.47,102.43,6.89909271]
[1770134196883,0.1,102.48,102.45,6.89909271]
[1770134197078,0.1,102.48,102.44,34.16634127]
[1770134197274,0.1,102.48,102.45,6.89909271]
[1770134198103,0.1,102.48,102.44,41.06543398]
[1770134198306,10.92930743,102.47,102.43,9.76262052]
[1770134198487,4.03021472,102.46,102.43,9.76262052]
[1770134198903,4.03021472,102.46,102.42,9.76312813]
[1770134199105,10.90281599,102.46,102.43,9.76272053]
[1770134199409,4.03021472,102.46,102.43,9.76272053]
[1770134199582,4.03021472,102.46,102.43,16.6353218]
[1770134199782,4.03021472,102.46,102.44,6.87260127]
[1770134199978,4.03021472,102.46,102.43,16.6353218]
[1770134200582,4.03021472,102.47,102.43,16.6353218]
[1770134200784,4.03021472,102.46,102.43,9.76272053]
[1770134201002,4.03021472,102.45,102.42,9.76349387]
[1770134201181,10.90281599,102.43,102.38,6.87260127]
[1770134201385,10.90281599,102.43,102.38,31.29076948]
[1770134201386,4.03021472,102.42,102.38,31.29076948]
[1770134201596,4.03021472,102.42,102.39,16.63880218]
[1770134201899,4.03021472,102.42,102.39,9.76620091]
[1770134202786,4.03021472,102.43,102.4,9.76553947]
[1770134202989,10.90281599,102.43,102.39,9.76636029]
[1770134203184,24.40214738,102.45,102.37,27.14303254]
[1770134203185,4.03021472,102.41,102.37,6.87260127]
[1770134203403,10.90281599,102.39,102.35,27.12]
[1770134203788,10.90281599,102.38,102.35,27.12]
[1770134203989,10.90281599,102.38,102.33,6.87260127]
[1770134204407,10.90281599,102.38,102.34,9.77086018]
[1770134205007,4.03021472,102.36,102.33,9.77172158]
[1770134205306,4.03021472,102.34,102.31,9.77385615]
[1770134205512,10.90281599,102.34,102.3,9.77468258]
[1770134205889,10.90281599,102.33,102.28,33.99260127]
[1770134206289,4.03021472,102.33,102.29,6.87260127]
[1770134206485,9.76966582,102.36,102.31,9.77388131]
[1770134206710,6.87260127,102.35,102.31,16.64648258]
[1770134206882,6.87260127,102.35,102.31,9.77388131]
[1770134207200,9.7713504,102.34,102.3,20.65196803]
[1770134207401,16.64395167,102.34,102.3,9.77473433]
[1770134207610,6.87260127,102.34,102.3,16.6473356]
[1770134207918,6.87260127,102.37,102.32,6.87260127]
[1770134208288,6.87260127,102.36,102.31,16.23809558]
[1770134208489,3.87836719,102.35,102.31,6.87260127]
[1770134208689,3.87836719,102.33,102.3,9.77473433]
[1770134209509,10.75096846,102.33,102.3,9.77473433]
[1770134210009,3.87836719,102.33,102.3,9.77473433]
[1770134210312,3.87836719,102.33,102.3,16.6473356]
[1770134210541,3.87836719,102.33,102.3,9.77473433]
[1770134211603,3.87836719,102.33,102.3,6.87260127]
[1770134211808,3.97751344,102.35,102.31,6.87260127]
[1770134212102,20.62061178,102.35,102.3,10.90063875]
[1770134215206,10.86132261,102.33,102.29,9.77565429]
[1770134215416,3.98872134,102.32,102.28,6.87260127]
[1770134215605,3.98872134,102.3,102.27,9.77753454]
[1770134215911,3.98872134,102.3,102.26,6.87260127]
[1770134215912,10.86132261,102.28,102.24,9.98088577]
[1770134216501,3.98872134,102.28,102.24,41.30575621]
[1770134216894,3.98872134,102.32,102.27,10.58882207]
[1770134217114,3.98872134,102.32,102.29,6.87260127]
[1770134217901,13.76202773,102.32,102.29,6.87260127]
[1770134218498,13.76202773,102.32,102.28,6.87260127]
[1770134218707,3.98872134,102.31,102.27,16.65022259]
[1770134218908,3.98872134,102.31,102.28,9.77698192]
[1770134220110,3.98872134,102.3,102.26,31.31977516]
[1770134220415,3.98872134,102.29,102.26,9.77861228]
[1770134221117,3.98872134,102.29,102.26,16.65121355]
[1770134221321,3.98872134,102.31,102.27,16.65059723]
[1770134221520,13.76307316,102.31,102.27,16.65059723]
[1770134221705,3.98872134,102.31,102.27,16.65059723]
[1770134222420,3.98872134,102.32,102.29,6.87260127]
[1770134222622,16.64433057,102.34,102.3,6.87260127]
[1770134222798,3.98872134,102.33,102.3,6.87260127]
[1770134222999,3.98872134,102.33,102.29,6.87260127]
[1770134223637,3.98872134,102.33,102.29,16.64794715]
[1770134223924,13.76105817,102.33,102.29,16.64794715]
[1770134224445,10.86132261,102.37,102.32,6.87260127]
[1770134224723,10.86132261,102.37,102.33,6.87260127]
[1770134225100,3.98872134,102.37,102.34,6.87260127]
[1770134225322,10.86132261,102.37,102.33,6.87260127]
[1770134225625,16.64241845,102.36,102.31,16.64586681]
[1770134225921,6.87260127,102.35,102.31,16.64586681]
[1770134226904,24.41285373,102.41,102.35,3.7162208]
[1770134227106,24.4087552,102.43,102.38,3.7162208]
[1770134227310,9.75895384,102.47,102.4,6.87260127]
[1770134227521,9.75895384,102.47,102.39,3.7162208]
[1770134227522,6.87260127,102.44,102.39,6.87260127]
[1770134227723,6.87260127,102.43,102.39,6.87260127]
[1770134228199,6.87260127,102.42,102.38,6.87260127]
[1770134228403,6.87260127,102.43,102.38,6.87260127]
[1770134228930,20.62526339,102.42,102.38,16.64013399]
[1770134229111,10.86132261,102.41,102.37,6.87260127]
[1770134229427,3.98872134,102.4,102.37,6.87260127]
[1770134229624,10.86132261,102.38,102.34,6.87260127]
[1770134229822,10.86132261,102.37,102.33,3.7162208]
[1770134230013,10.86132261,102.37,102.33,10.58882207]
[1770134230327,10.86132261,102.37,102.33,20.36072944]
[1770134230531,10.86132261,102.37,102.33,20.36062932]
[1770134230713,10.86132261,102.37,102.33,13.48802805]